[Event "Late-Titled-Tuesday-Blitz-July-09-2024"]
[Site "Chess.com"]
[Date "2024.07.09"]
[Round "1"]
[White "MKlose11"]
[Black "le-castor-faineant"]
[Result "1-0"]
[WhiteElo "2659"]
[BlackElo "2336"]
[TimeControl "180+1"]
[EndTime "14:08:19 PDT"]
[Termination "MKlose11 won on time"]

1. e4 {[%clk 0:02:57.4]} 1... e5 {[%clk 0:02:59.3]} 2. Nf3 {[%clk 0:02:56.7]}
2... Nf6 {[%clk 0:02:56.5]} 3. d4 {[%clk 0:02:57.6]} 3... Nxe4 {[%clk
0:02:55.6]} 4. Bd3 {[%clk 0:02:57.5]} 4... d5 {[%clk 0:02:55.1]} 5. Nxe5 {[%clk
0:02:57.5]} 5... Bd6 {[%clk 0:02:54.5]} 6. O-O {[%clk 0:02:56.7]} 6... O-O
{[%clk 0:02:54.2]} 7. c4 {[%clk 0:02:56.8]} 7... c6 {[%clk 0:02:54.1]} 8. Nc3
{[%clk 0:02:56]} 8... Nxc3 {[%clk 0:02:53.9]} 9. bxc3 {[%clk 0:02:55.4]} 9...
dxc4 {[%clk 0:02:54.1]} 10. Nxc4 {[%clk 0:02:52]} 10... Bc7 {[%clk 0:02:52.3]}
11. Qf3 {[%clk 0:02:46.6]} 11... Be6 {[%clk 0:02:46.7]} 12. Bf4 {[%clk
0:02:44.4]} 12... Nd7 {[%clk 0:02:38.1]} 13. Nd6 {[%clk 0:02:38.1]} 13... Qb8
{[%clk 0:02:28.8]} 14. Qg3 {[%clk 0:02:10.7]} 14... Nf6 {[%clk 0:02:22.9]} 15.
Nf5 {[%clk 0:01:55.1]} 15... Bxf5 {[%clk 0:02:16.4]} 16. Bxc7 {[%clk 0:01:54.8]}
16... Qc8 {[%clk 0:02:12.4]} 17. Be5 {[%clk 0:01:53.9]} 17... Nh5 {[%clk
0:02:06.5]} 18. Qf3 {[%clk 0:01:49.9]} 18... Bxd3 {[%clk 0:02:04.1]} 19. Qxd3
{[%clk 0:01:49.4]} 19... Qg4 {[%clk 0:01:49.1]} 20. h3 {[%clk 0:01:46.7]} 20...
Qg6 {[%clk 0:01:47.7]} 21. Qf3 {[%clk 0:01:43.1]} 21... Rfe8 {[%clk 0:01:34.8]}
22. g4 {[%clk 0:01:37.5]} 22... Nf6 {[%clk 0:01:33]} 23. Bxf6 {[%clk 0:01:37.8]}
23... Qxf6 {[%clk 0:01:24.6]} 24. Qxf6 {[%clk 0:01:37.8]} 24... gxf6 {[%clk
0:01:25.3]} 25. Rfe1 {[%clk 0:01:38.2]} 25... Re6 {[%clk 0:01:25.5]} 26. Kf1
{[%clk 0:01:37.6]} 26... Rae8 {[%clk 0:01:23.2]} 27. Rab1 {[%clk 0:01:36.5]}
27... b5 {[%clk 0:01:23]} 28. Rxe6 {[%clk 0:01:20.4]} 28... fxe6 {[%clk
0:01:23.9]} 29. a4 {[%clk 0:01:20.4]} 29... a6 {[%clk 0:01:07.9]} 30. Ke2 {[%clk
0:01:19.7]} 30... Kf7 {[%clk 0:01:00.1]} 31. axb5 {[%clk 0:01:10.7]} 31... cxb5
{[%clk 0:00:59.4]} 32. Ra1 {[%clk 0:01:09.7]} 32... Rc8 {[%clk 0:00:59]} 33. Kd3
{[%clk 0:01:07]} 33... Rc6 {[%clk 0:00:58.7]} 34. f4 {[%clk 0:01:03.1]} 34...
Kg6 {[%clk 0:00:54.8]} 35. Ra2 {[%clk 0:01:01.4]} 35... h6 {[%clk 0:00:52.3]}
36. Ra1 {[%clk 0:01:00.4]} 36... Kf7 {[%clk 0:00:52.2]} 37. Ra5 {[%clk
0:00:59.3]} 37... Ke7 {[%clk 0:00:51.4]} 38. Ra1 {[%clk 0:00:58.2]} 38... Kf7
{[%clk 0:00:50.6]} 39. h4 {[%clk 0:00:58]} 39... Kg6 {[%clk 0:00:45]} 40. Re1
{[%clk 0:00:54.1]} 40... Kf7 {[%clk 0:00:44.7]} 41. Rh1 {[%clk 0:00:51.1]} 41...
Kg6 {[%clk 0:00:37]} 42. Rg1 {[%clk 0:00:39.1]} 42... Kf7 {[%clk 0:00:36.4]} 43.
g5 {[%clk 0:00:39.4]} 43... fxg5 {[%clk 0:00:36.8]} 44. fxg5 {[%clk 0:00:39]}
44... hxg5 {[%clk 0:00:36.7]} 45. Rxg5 {[%clk 0:00:39]} 45... Kf6 {[%clk
0:00:34.1]} 46. Re5 {[%clk 0:00:35.2]} 46... Rc8 {[%clk 0:00:31.2]} 47. h5
{[%clk 0:00:35.1]} 47... Rh8 {[%clk 0:00:30.4]} 48. Rc5 {[%clk 0:00:34.6]} 48...
Ra8 {[%clk 0:00:28.1]} 49. Kc2 {[%clk 0:00:32.3]} 49... Ke7 {[%clk 0:00:23.7]}
50. h6 {[%clk 0:00:26]} 50... Kf6 {[%clk 0:00:21.6]} 51. Rc6 {[%clk 0:00:24.3]}
51... a5 {[%clk 0:00:17.8]} 52. d5 {[%clk 0:00:23.7]} 52... Kg6 {[%clk
0:00:08.1]} 53. Rxe6+ {[%clk 0:00:23.3]} 53... Kh7 {[%clk 0:00:08.6]} 54. d6
{[%clk 0:00:20]} 54... a4 {[%clk 0:00:07]} 55. Kb2 {[%clk 0:00:20.3]} 55... Rd8
{[%clk 0:00:03.9]} 56. Ka3 {[%clk 0:00:20.4]} 56... Rc8 {[%clk 0:00:03.7]} 57.
Kb4 {[%clk 0:00:20.1]} 57... a3 {[%clk 0:00:04.3]} 58. Kxa3 {[%clk 0:00:16.4]}
58... Rxc3+ {[%clk 0:00:04]} 59. Kb4 {[%clk 0:00:17]} 59... Rd3 {[%clk
0:00:02.5]} 60. Kxb5 {[%clk 0:00:17.4]} 60... Rd1 {[%clk 0:00:02.5]} 61. Kc6
{[%clk 0:00:17.6]} 61... Kh8 {[%clk 0:00:03]} 62. Kd7 {[%clk 0:00:17.7]} 62...
Kh7 {[%clk 0:00:02.9]} 63. Ke7 {[%clk 0:00:18.2]} 63... Kh8 {[%clk 0:00:03.4]}
64. d7 {[%clk 0:00:18.7]} 64... Kh7 {[%clk 0:00:02.2]} 65. d8=Q {[%clk
0:00:19.2]} 65... Rd7+ {[%clk 0:00:02.4]} 66. Qxd7 {[%clk 0:00:17]} 1-0

[Event "Late-Titled-Tuesday-Blitz-July-09-2024"]
[Site "Chess.com"]
[Date "2024.07.09"]
[Round "1"]
[White "Marks1420"]
[Black "flaviorcb"]
[Result "0-1"]
[WhiteElo "2552"]
[BlackElo "2185"]
[TimeControl "180+1"]
[EndTime "14:08:20 PDT"]
[Termination "flaviorcb won by checkmate"]

1. e4 {[%clk 0:02:57.4]} 1... c5 {[%clk 0:02:59.8]} 2. Nf3 {[%clk 0:02:56.4]}
2... g6 {[%clk 0:03:00.4]} 3. c3 {[%clk 0:02:55.1]} 3... Bg7 {[%clk 0:02:59.5]}
4. Bd3 {[%clk 0:02:53.5]} 4... d6 {[%clk 0:02:51.7]} 5. O-O {[%clk 0:02:53]}
5... Nf6 {[%clk 0:02:52.2]} 6. Bc2 {[%clk 0:02:53.2]} 6... Nc6 {[%clk
0:02:52.2]} 7. h3 {[%clk 0:02:53.8]} 7... O-O {[%clk 0:02:51.9]} 8. d3 {[%clk
0:02:54]} 8... Rb8 {[%clk 0:02:50.9]} 9. Be3 {[%clk 0:02:54]} 9... b5 {[%clk
0:02:49.4]} 10. Qd2 {[%clk 0:02:54]} 10... b4 {[%clk 0:02:47.1]} 11. Bh6 {[%clk
0:02:51.8]} 11... bxc3 {[%clk 0:02:46.9]} 12. bxc3 {[%clk 0:02:50.3]} 12... Ba6
{[%clk 0:02:40.9]} 13. Bxg7 {[%clk 0:02:46.8]} 13... Kxg7 {[%clk 0:02:41.2]} 14.
Na3 {[%clk 0:02:46.4]} 14... Qa5 {[%clk 0:02:32.3]} 15. Nc4 {[%clk 0:02:45.5]}
15... Bxc4 {[%clk 0:02:31.4]} 16. dxc4 {[%clk 0:02:46.4]} 16... Rb2 {[%clk
0:02:21.1]} 17. Qd3 {[%clk 0:02:24.5]} 17... Rxa2 {[%clk 0:02:04]} 18. Rxa2
{[%clk 0:01:50.1]} 18... Qxa2 {[%clk 0:02:02.6]} 19. Re1 {[%clk 0:01:40.8]}
19... Rb8 {[%clk 0:01:57.1]} 20. e5 {[%clk 0:01:21.4]} 20... Nxe5 {[%clk
0:01:52.4]} 21. Nxe5 {[%clk 0:01:21.4]} 21... dxe5 {[%clk 0:01:52.6]} 22. Bb1
{[%clk 0:01:21]} 22... e4 {[%clk 0:01:33.5]} 23. Bxa2 {[%clk 0:01:11.4]} 23...
exd3 {[%clk 0:01:33.2]} 24. Rd1 {[%clk 0:01:12]} 24... Rb2 {[%clk 0:01:30.5]}
25. Bb1 {[%clk 0:01:12.4]} 25... d2 {[%clk 0:01:30.1]} 26. Kf1 {[%clk
0:01:12.7]} 26... Nd7 {[%clk 0:01:27.3]} 27. f4 {[%clk 0:01:08.4]} 27... f5
{[%clk 0:01:23.1]} 28. Ke2 {[%clk 0:01:06.1]} 28... Nb6 {[%clk 0:01:18.8]} 29.
Bd3 {[%clk 0:01:06.2]} 29... Na4 {[%clk 0:01:18.6]} 30. Rxd2 {[%clk 0:01:04.8]}
30... Nxc3+ {[%clk 0:01:18.7]} 31. Ke3 {[%clk 0:01:05.4]} 31... Rxd2 {[%clk
0:01:05.4]} 32. Kxd2 {[%clk 0:01:06.3]} 32... Ne4+ {[%clk 0:01:04.2]} 33. Ke3
{[%clk 0:01:03.6]} 33... Nd6 {[%clk 0:01:01.7]} 34. g4 {[%clk 0:01:03.3]} 34...
Kf6 {[%clk 0:01:01.3]} 35. g5+ {[%clk 0:01:03.4]} 35... Ke6 {[%clk 0:00:54.3]}
36. h4 {[%clk 0:00:59.2]} 36... Nf7 {[%clk 0:00:53.2]} 37. Bc2 {[%clk 0:00:57]}
37... Kd6 {[%clk 0:00:53]} 38. Ba4 {[%clk 0:00:54.9]} 38... e5 {[%clk
0:00:50.4]} 39. fxe5+ {[%clk 0:00:53.5]} 39... Nxe5 {[%clk 0:00:50.3]} 40. Bb5
{[%clk 0:00:53.5]} 40... a5 {[%clk 0:00:48]} 41. Kf4 {[%clk 0:00:50.3]} 41...
Nd3+ {[%clk 0:00:46.6]} 42. Ke3 {[%clk 0:00:49.7]} 42... Nb4 {[%clk 0:00:42.3]}
43. Kf4 {[%clk 0:00:48.3]} 43... Nc6 {[%clk 0:00:38.8]} 44. h5 {[%clk
0:00:47.3]} 44... Nd4 {[%clk 0:00:37.1]} 45. Be8 {[%clk 0:00:37.8]} 45... Ne6+
{[%clk 0:00:34.5]} 46. Ke3 {[%clk 0:00:36.6]} 46... Nxg5 {[%clk 0:00:33.5]} 47.
hxg6 {[%clk 0:00:37]} 47... hxg6 {[%clk 0:00:33.3]} 48. Bxg6 {[%clk 0:00:37.9]}
48... Ke5 {[%clk 0:00:33.4]} 49. Be8 {[%clk 0:00:37]} 49... Ne4 {[%clk
0:00:32.5]} 50. Bb5 {[%clk 0:00:35.3]} 50... f4+ {[%clk 0:00:32.7]} 51. Kf3
{[%clk 0:00:35.7]} 51... Nd6 {[%clk 0:00:31.5]} 52. Bc6 {[%clk 0:00:35.6]} 52...
Nxc4 {[%clk 0:00:30.6]} 53. Ke2 {[%clk 0:00:36]} 53... Nd6 {[%clk 0:00:26.6]}
54. Kd3 {[%clk 0:00:35.7]} 54... c4+ {[%clk 0:00:26.1]} 55. Kc3 {[%clk
0:00:35.4]} 55... Kf5 {[%clk 0:00:21.9]} 56. Kd4 {[%clk 0:00:36.1]} 56... Kg4
{[%clk 0:00:21.4]} 57. Ke5 {[%clk 0:00:36.8]} 57... f3 {[%clk 0:00:18.7]} 58.
Kxd6 {[%clk 0:00:36.8]} 58... f2 {[%clk 0:00:17.7]} 59. Bg2 {[%clk 0:00:37.4]}
59... a4 {[%clk 0:00:17.8]} 60. Bf1 {[%clk 0:00:38.3]} 60... a3 {[%clk
0:00:17.9]} 61. Bxc4 {[%clk 0:00:39]} 61... a2 {[%clk 0:00:17.6]} 62. Bxa2
{[%clk 0:00:39.7]} 62... f1=Q {[%clk 0:00:17.9]} 63. Be6+ {[%clk 0:00:40.6]}
63... Kg5 {[%clk 0:00:16.9]} 64. Bd5 {[%clk 0:00:41]} 64... Qd3 {[%clk
0:00:16.5]} 65. Ke5 {[%clk 0:00:41.3]} 65... Qe3+ {[%clk 0:00:16]} 66. Be4
{[%clk 0:00:41.1]} 66... Qg3+ {[%clk 0:00:13]} 67. Kd4 {[%clk 0:00:41]} 67...
Qf4 {[%clk 0:00:13.9]} 68. Kd5 {[%clk 0:00:38.2]} 68... Kf6 {[%clk 0:00:14.2]}
69. Bd3 {[%clk 0:00:37.8]} 69... Qe5+ {[%clk 0:00:15.1]} 70. Kc4 {[%clk
0:00:38.1]} 70... Ke7 {[%clk 0:00:14.9]} 71. Bc2 {[%clk 0:00:37.3]} 71... Kd6
{[%clk 0:00:15.8]} 72. Bd3 {[%clk 0:00:37.7]} 72... Qf4+ {[%clk 0:00:15.6]} 73.
Kb3 {[%clk 0:00:38.6]} 73... Kc5 {[%clk 0:00:15.8]} 74. Kc3 {[%clk 0:00:39.3]}
74... Qd4+ {[%clk 0:00:15.7]} 75. Kd2 {[%clk 0:00:40.2]} 75... Kb4 {[%clk
0:00:15.4]} 76. Kc2 {[%clk 0:00:40.5]} 76... Qc3+ {[%clk 0:00:14.9]} 77. Kb1
{[%clk 0:00:40.9]} 77... Qxd3+ {[%clk 0:00:14.6]} 78. Ka2 {[%clk 0:00:41.8]}
78... Qd2+ {[%clk 0:00:14]} 79. Ka1 {[%clk 0:00:41.9]} 79... Kb3 {[%clk
0:00:14.6]} 80. Kb1 {[%clk 0:00:41.7]} 80... Qb2# {[%clk 0:00:14.9]} 0-1

[Event "Late-Titled-Tuesday-Blitz-July-09-2024"]
[Site "Chess.com"]
[Date "2024.07.09"]
[Round "1"]
[White "ljm509"]
[Black "dolynachess"]
[Result "0-1"]
[WhiteElo "2009"]
[BlackElo "2546"]
[TimeControl "180+1"]
[EndTime "14:08:23 PDT"]
[Termination "dolynachess won by resignation"]

1. e4 {[%clk 0:02:58.4]} 1... c5 {[%clk 0:02:59.4]} 2. Nf3 {[%clk 0:02:58.4]}
2... d6 {[%clk 0:02:57.6]} 3. d4 {[%clk 0:02:58.4]} 3... cxd4 {[%clk 0:02:58.5]}
4. Nxd4 {[%clk 0:02:59]} 4... Nf6 {[%clk 0:02:59.2]} 5. Nc3 {[%clk 0:02:59.1]}
5... g6 {[%clk 0:03:00.1]} 6. f3 {[%clk 0:02:59.1]} 6... Nc6 {[%clk 0:02:57.2]}
7. Be3 {[%clk 0:02:59.3]} 7... h5 {[%clk 0:02:57.4]} 8. Qd2 {[%clk 0:02:59.1]}
8... Nxd4 {[%clk 0:02:57.4]} 9. Bxd4 {[%clk 0:02:59]} 9... Bh6 {[%clk
0:02:57.8]} 10. Be3 {[%clk 0:02:59.4]} 10... Bxe3 {[%clk 0:02:57.7]} 11. Qxe3
{[%clk 0:03:00.3]} 11... Be6 {[%clk 0:02:57.6]} 12. O-O-O {[%clk 0:03:00.3]}
12... Qa5 {[%clk 0:02:57]} 13. Bb5+ {[%clk 0:02:59.7]} 13... Kf8 {[%clk
0:02:56.4]} 14. Ba4 {[%clk 0:02:50.4]} 14... Rc8 {[%clk 0:02:55]} 15. Bb3 {[%clk
0:02:40.8]} 15... Bxb3 {[%clk 0:02:53]} 16. axb3 {[%clk 0:02:39]} 16... Kg7
{[%clk 0:02:32]} 17. Kb1 {[%clk 0:02:37.9]} 17... Rc6 {[%clk 0:02:31.1]} 18. h4
{[%clk 0:02:34.9]} 18... Ra6 {[%clk 0:02:29.4]} 19. Kc1 {[%clk 0:02:26.8]} 19...
Rc8 {[%clk 0:02:24.7]} 20. Kd2 {[%clk 0:02:02.8]} 20... Qe5 {[%clk 0:02:12.9]}
21. Ra1 {[%clk 0:01:57.9]} 21... Rxa1 {[%clk 0:02:07.9]} 22. Rxa1 {[%clk
0:01:56.6]} 22... a6 {[%clk 0:02:08.8]} 23. Ra4 {[%clk 0:01:46.2]} 23... Qg3
{[%clk 0:02:00.1]} 24. Qg5 {[%clk 0:01:44.8]} 24... Qf2+ {[%clk 0:01:53.3]} 25.
Kc1 {[%clk 0:01:37.2]} 25... Rc5 {[%clk 0:01:45.4]} 26. Qd2 {[%clk 0:01:21.5]}
26... Qxh4 {[%clk 0:01:40.1]} 27. Rb4 {[%clk 0:01:20.7]} 27... b5 {[%clk
0:01:37.7]} 28. Rd4 {[%clk 0:01:20]} 28... Qg3 {[%clk 0:01:25.9]} 29. Kb1 {[%clk
0:01:17.2]} 29... h4 {[%clk 0:01:24]} 30. b4 {[%clk 0:01:09.4]} 30... Rg5 {[%clk
0:01:13.6]} 31. f4 {[%clk 0:00:53]} 31... Rg4 {[%clk 0:01:08.5]} 32. e5 {[%clk
0:00:52.2]} 32... dxe5 {[%clk 0:01:06.4]} 33. fxe5 {[%clk 0:00:51.5]} 33... Qxe5
{[%clk 0:01:04.4]} 34. Rxg4 {[%clk 0:00:42.5]} 34... Nxg4 {[%clk 0:01:05.3]} 35.
Qd7 {[%clk 0:00:38.5]} 35... Ne3 {[%clk 0:00:56.4]} 36. Qd2 {[%clk 0:00:35]}
36... Nc4 {[%clk 0:00:49.6]} 37. Qf2 {[%clk 0:00:33.9]} 37... Qg3 {[%clk
0:00:41.5]} 38. Qd4+ {[%clk 0:00:30.9]} 38... e5 {[%clk 0:00:41.7]} 39. Qd5
{[%clk 0:00:28.4]} 39... Qe1+ {[%clk 0:00:38.1]} 40. Ka2 {[%clk 0:00:27.2]}
40... Qc1 {[%clk 0:00:36.8]} 41. Nd1 {[%clk 0:00:24.5]} 41... Qxc2 {[%clk
0:00:35.5]} 42. Ka1 {[%clk 0:00:17.9]} 42... Qd2 {[%clk 0:00:24]} 43. Qxd2
{[%clk 0:00:14.7]} 43... Nxd2 {[%clk 0:00:24.9]} 44. Ne3 {[%clk 0:00:14.7]}
44... f5 {[%clk 0:00:20.5]} 45. b3 {[%clk 0:00:13.4]} 45... Nxb3+ {[%clk
0:00:20]} 46. Kb2 {[%clk 0:00:14.3]} 46... Nd2 {[%clk 0:00:18.6]} 47. Kc3 {[%clk
0:00:13.9]} 47... Nc4 {[%clk 0:00:19.2]} 48. Nd5 {[%clk 0:00:13.6]} 48... g5
{[%clk 0:00:18]} 49. Nc7 {[%clk 0:00:13.6]} 49... g4 {[%clk 0:00:17.6]} 50. Nxa6
{[%clk 0:00:13.2]} 50... h3 {[%clk 0:00:17.9]} 51. gxh3 {[%clk 0:00:13.1]} 51...
gxh3 {[%clk 0:00:18.3]} 52. Nc7 {[%clk 0:00:14]} 52... h2 {[%clk 0:00:17]} 53.
Nxb5 {[%clk 0:00:14.9]} 53... h1=Q {[%clk 0:00:16.7]} 54. Kxc4 {[%clk
0:00:14.8]} 54... Qf1+ {[%clk 0:00:17.6]} 55. Kc5 {[%clk 0:00:14.6]} 55... f4
{[%clk 0:00:17.3]} 56. Nd6 {[%clk 0:00:14.2]} 56... f3 {[%clk 0:00:16.9]} 57. b5
{[%clk 0:00:14.1]} 57... f2 {[%clk 0:00:17]} 58. b6 {[%clk 0:00:14.1]} 58...
Qc1+ {[%clk 0:00:17.9]} 59. Kd5 {[%clk 0:00:14]} 59... f1=Q {[%clk 0:00:18.3]}
60. b7 {[%clk 0:00:14.1]} 60... Qd3+ {[%clk 0:00:18.7]} 61. Ke6 {[%clk
0:00:14.3]} 61... Qb3+ {[%clk 0:00:15.9]} 62. Kd7 {[%clk 0:00:13.5]} 62... Qd2
{[%clk 0:00:14.9]} 63. Kc7 {[%clk 0:00:12.9]} 63... Qxd6+ {[%clk 0:00:15.4]} 64.
Kxd6 {[%clk 0:00:12.5]} 64... Qxb7 {[%clk 0:00:15.9]} 65. Kxe5 {[%clk
0:00:12.7]} 65... Qf7 {[%clk 0:00:16.3]} 66. Kd4 {[%clk 0:00:11.5]} 66... Qf5
{[%clk 0:00:16.2]} 0-1

[Event "Late-Titled-Tuesday-Blitz-July-09-2024"]
[Site "Chess.com"]
[Date "2024.07.09"]
[Round "1"]
[White "krucki03"]
[Black "GHANDEEVAM2003"]
[Result "0-1"]
[WhiteElo "2517"]
[BlackElo "3177"]
[TimeControl "180+1"]
[EndTime "14:08:24 PDT"]
[Termination "GHANDEEVAM2003 won by resignation"]

1. e4 {[%clk 0:02:57.7]} 1... d6 {[%clk 0:03:00.9]} 2. d4 {[%clk 0:02:55.8]}
2... g6 {[%clk 0:03:01.8]} 3. Nc3 {[%clk 0:02:55.8]} 3... Bg7 {[%clk 0:03:01.9]}
4. Nf3 {[%clk 0:02:56.4]} 4... a6 {[%clk 0:03:02.4]} 5. Be3 {[%clk 0:02:53]}
5... b5 {[%clk 0:03:02]} 6. Bd3 {[%clk 0:02:53.1]} 6... Nd7 {[%clk 0:03:01.8]}
7. a4 {[%clk 0:02:53]} 7... b4 {[%clk 0:03:01.5]} 8. Ne2 {[%clk 0:02:52.8]} 8...
Ngf6 {[%clk 0:02:59.8]} 9. c3 {[%clk 0:02:52.4]} 9... Bb7 {[%clk 0:02:54.9]} 10.
Ng3 {[%clk 0:02:49.1]} 10... a5 {[%clk 0:02:54.2]} 11. O-O {[%clk 0:02:47.7]}
11... O-O {[%clk 0:02:53.5]} 12. Qd2 {[%clk 0:02:45.4]} 12... Ng4 {[%clk
0:02:49.3]} 13. cxb4 {[%clk 0:02:30.1]} 13... Nxe3 {[%clk 0:02:49.3]} 14. fxe3
{[%clk 0:02:31]} 14... axb4 {[%clk 0:02:49]} 15. Qxb4 {[%clk 0:02:31.6]} 15...
Qb8 {[%clk 0:02:39.8]} 16. a5 {[%clk 0:01:54.4]} 16... c5 {[%clk 0:02:39.5]} 17.
Qa4 {[%clk 0:01:14.8]} 17... Qc7 {[%clk 0:02:39.6]} 18. Rfc1 {[%clk 0:01:08]}
18... Bc6 {[%clk 0:02:35.4]} 19. Qc2 {[%clk 0:01:06.2]} 19... Rfb8 {[%clk
0:02:33.9]} 20. a6 {[%clk 0:01:03.2]} 20... Qb6 {[%clk 0:02:31.5]} 21. Ra2
{[%clk 0:00:35]} 21... Ra7 {[%clk 0:02:31]} 22. Ne2 {[%clk 0:00:33]} 22... Bh6
{[%clk 0:02:25.1]} 23. Kf2 {[%clk 0:00:31.2]} 23... Rc8 {[%clk 0:02:22.5]} 24.
d5 {[%clk 0:00:30]} 24... Ba8 {[%clk 0:02:19.8]} 25. Nc3 {[%clk 0:00:25.8]}
25... c4 {[%clk 0:02:19]} 26. Nd1 {[%clk 0:00:18.4]} 26... Rxa6 {[%clk
0:01:54.5]} 27. Rxa6 {[%clk 0:00:19.3]} 27... Qxa6 {[%clk 0:01:55.4]} 28. Bxc4
{[%clk 0:00:19]} 28... Qb6 {[%clk 0:01:56]} 29. b3 {[%clk 0:00:18.6]} 29... Bb7
{[%clk 0:01:54.4]} 30. Ra1 {[%clk 0:00:17.6]} 30... Bg7 {[%clk 0:01:52.8]} 31.
Rc1 {[%clk 0:00:14.4]} 31... Ra8 {[%clk 0:01:51.6]} 32. Ne1 {[%clk 0:00:13]}
32... Ne5 {[%clk 0:01:51.3]} 33. Nd3 {[%clk 0:00:12.7]} 33... Ng4+ {[%clk
0:01:51.2]} 34. Kf3 {[%clk 0:00:12.4]} 34... h5 {[%clk 0:01:46.3]} 35. h3 {[%clk
0:00:12]} 35... Nf6 {[%clk 0:01:46.9]} 36. N3f2 {[%clk 0:00:11.2]} 36... Nd7
{[%clk 0:01:46]} 37. Nd3 {[%clk 0:00:10.2]} 37... Bh6 {[%clk 0:01:46]} 38. Rb1
{[%clk 0:00:08.2]} 38... Rf8 {[%clk 0:01:46.5]} 39. g4 {[%clk 0:00:06.3]} 39...
hxg4+ {[%clk 0:01:45.8]} 40. hxg4 {[%clk 0:00:07.2]} 40... Bg5 {[%clk
0:01:45.8]} 41. Rb2 {[%clk 0:00:06.3]} 41... Bf6 {[%clk 0:01:44.7]} 42. Ra2
{[%clk 0:00:06.5]} 42... Kg7 {[%clk 0:01:44.9]} 43. Qe2 {[%clk 0:00:04.2]} 43...
Rh8 {[%clk 0:01:45.3]} 44. Qg2 {[%clk 0:00:04.9]} 44... Ne5+ {[%clk 0:01:43.9]}
45. Nxe5 {[%clk 0:00:04]} 45... Bxe5 {[%clk 0:01:44.8]} 46. Qg1 {[%clk
0:00:03.7]} 46... Rh3+ {[%clk 0:01:43.2]} 47. Ke2 {[%clk 0:00:03.2]} 47... Bc8
{[%clk 0:01:42]} 48. Kd3 {[%clk 0:00:03.8]} 48... Qd8 {[%clk 0:01:38.5]} 49. Rg2
{[%clk 0:00:03.9]} 49... Qh8 {[%clk 0:01:38.1]} 50. Nf2 {[%clk 0:00:04.5]} 50...
Rh4 {[%clk 0:01:36]} 51. Qf1 {[%clk 0:00:05.2]} 51... Bd7 {[%clk 0:01:34.5]} 52.
Rg1 {[%clk 0:00:05.8]} 52... Qa8 {[%clk 0:01:27.5]} 53. Rh1 {[%clk 0:00:05.7]}
53... Rxh1 {[%clk 0:01:28]} 54. Qxh1 {[%clk 0:00:05.5]} 54... Qa5 {[%clk
0:01:28.7]} 55. Qd1 {[%clk 0:00:04.7]} 55... Qc3+ {[%clk 0:01:27]} 56. Ke2
{[%clk 0:00:04]} 56... Bg3 {[%clk 0:01:27.9]} 57. Qe1 {[%clk 0:00:02.9]} 57...
Bxg4+ {[%clk 0:01:26.3]} 58. Kf1 {[%clk 0:00:02.8]} 58... Bh3+ {[%clk
0:01:20.9]} 59. Ke2 {[%clk 0:00:02]} 59... Qf6 {[%clk 0:01:20.4]} 60. Qg1 {[%clk
0:00:01.3]} 60... Qh4 {[%clk 0:01:08.8]} 61. Nxh3 {[%clk 0:00:01]} 61... Qxh3
{[%clk 0:01:09.7]} 62. Qf1 {[%clk 0:00:01.2]} 62... Qh2+ {[%clk 0:01:09.3]} 63.
Kd3 {[%clk 0:00:02.1]} 63... Be5 {[%clk 0:01:08.3]} 64. Qe2 {[%clk 0:00:02.9]}
64... Qg1 {[%clk 0:01:08.5]} 65. Qc2 {[%clk 0:00:03.4]} 65... g5 {[%clk
0:01:05.1]} 66. Qe2 {[%clk 0:00:03.9]} 66... g4 {[%clk 0:01:05]} 67. Kd2 {[%clk
0:00:04.1]} 67... Kf8 {[%clk 0:00:59.1]} 68. b4 {[%clk 0:00:04.5]} 68... g3
{[%clk 0:00:54.5]} 69. b5 {[%clk 0:00:03.9]} 69... Qa1 {[%clk 0:00:50]} 70. Bd3
{[%clk 0:00:01.7]} 70... Qc3+ {[%clk 0:00:47.1]} 71. Kd1 {[%clk 0:00:02.3]}
71... g2 {[%clk 0:00:47.4]} 72. Qxg2 {[%clk 0:00:02.3]} 72... Qxd3+ {[%clk
0:00:47.9]} 73. Ke1 {[%clk 0:00:02.8]} 73... Qxe3+ {[%clk 0:00:47.5]} 0-1